Cogmind - Beta 15 @@@ ROGUE MODE // 2025.06.12 @ 12:32:24 Player: Storm Mk9 Result: Destroyed by D-53 Grenadier with Mini Grenade Launcher Performance ------------- Evolutions (0) 0 Regions Visited (2) 400 Robots Destroyed (20) 100 Value Destroyed (335) 335 Prototype IDs (0) 0 Alien Tech Used (0) 0 Bonus (0) 0 TOTAL SCORE: 835 Bonus ------- None Cogmind --------- Core Integrity 0/250 Matter 245/300 Energy 246/250 System Corruption 0% Temperature Cool (0) Movement Walking (120) Location -10/Mines Parts ------- > --- POWER (1) -------- Ion Engine > --- PROPULSION (2) --- Aluminum Leg Aluminum Leg > --- UTILITY (2) ------ Small Storage Unit Seismic Detector > --- WEAPON (2) ------- Assault Rifle Assault Rifle > --- INVENTORY (8) ---- Aluminum Leg Medium Storage Unit Improved Terrain Scanner EM Pulse Gun Small Laser Grenade Launcher Mining Laser Peak State ------------ > --- POWER ------------ Ion Engine > --- PROPULSION ------- Aluminum Leg Aluminum Leg > --- UTILITY ---------- Small Storage Unit Seismic Detector > --- WEAPON ----------- Medium Laser Assault Rifle > --- INVENTORY -------- Ion Engine Light Ion Engine Medium Storage Unit Improved Terrain Scanner EM Pulse Gun Assault Rifle Grenade Launcher Mining Laser [Rating: 8] Favorites ----------- Power Ion Engine Engine Ion Engine Propulsion Aluminum Leg Leg Aluminum Leg Wheel Compact Wheel Utility Small Storage Unit Device Seismic Detector Storage Small Storage Unit Protection Core Shielding Weapon Assault Rifle Energy Gun Medium Laser Ballistic Gun Assault Rifle Launcher Grenade Launcher Build | -11 -10 -10 ------- Run | Yrd Mat Min Slots Evolved . | . . . Power . | . . . Propulsion . | . . . Utility . | . . . Weapon . | . . . Parts Attached 15 | 9 2 4 Power 2 | 1 . 1 Engine 2 | 1 . 1 Core . | . . . Reactor . | . . . Propulsion 6 | 4 1 1 Treads . | . . . Leg 4 | 2 1 1 Wheel 2 | 2 . . Hover . | . . . Flight . | . . . Utility 3 | 2 1 . Device 1 | 1 . . Storage 1 | 1 . . Processor . | . . . Hackware . | . . . Protection 1 | . 1 . Artifact . | . . . Weapon 4 | 2 . 2 Energy Gun 1 | 1 . . Energy Cannon . | . . . Ballistic Gun 2 | 1 . 1 Ballistic Cannon . | . . . Launcher 1 | . . 1 Special Weapon . | . . . Impact Weapon . | . . . Slashing Weapon . | . . . Piercing Weapon . | . . . Special Melee Weapon . | . . . Unidentified Prototypes . | . . . Parts Lost 3 | . . 3 Power 1 | . . 1 Propulsion 1 | . . 1 Utility . | . . . Weapon 1 | . . 1 Highest Loss Streak 2 | . . 2 To Critical Strikes . | . . . Average Backups 7 | 2 6 7 Power . | 1 1 . Propulsion . | . . . Utility 1 | . 1 2 Weapon 3 | 1 3 4 Tool/Special . | . . . Unused Backups 8 | . 2 6 Power 1 | . 1 . Propulsion 2 | . 1 1 Utility 2 | . . 2 Weapon 3 | . . 3 Tool/Special . | . . . Average Slot Usage (%) 99 | . 100 99 Engine 13 | . 14 13 Leg 27 | . 28 27 Device 13 | . 12 14 Storage 14 | . 14 14 Energy Gun 13 | . 14 13 Ballistic Gun 14 | . 14 14 Peak Build Rating 8 | 7 8 8 Average Rating 7 | 5 7 7 On Entrance 5 | . 7 8 Naked Turns . | . . . Heaviest Build 16 | 15 15 16 Greatest Support 20 | 20 20 20 Greatest Overweight (x) 1 | 1 . 1 Average Overweight (x) . | . . . Largest Inventory Capacity 8 | 8 8 8 Average Capacity 7 | 7 8 8 Most Carried 8 | 6 8 8 Average Carried 7 | 2 6 7 Final Capacity 8 | 8 8 8 Final Carried 8 | 5 8 7 Class Distribution -------------------- 100% | Mutant Dominant Class ---------------- Mutant | -10/Materials Mutant | -10/Mines Resources | -11 -10 -10 ----------- Run | Yrd Mat Min Matter Collected 445 | 243 33 169 Remotely . | . . . Salvage Created 527 | 57 126 344 Parts 39 | 8 4 27 Haulers Intercepted 1 | . 1 . Recyclers Shooed . | . . . Parts Field Recycled . | . . . Retrieved Matter . | . . . Parts Self-Destructed . | . . . Prevented . | . . . Kills | -11 -10 -10 ------- Run | Yrd Mat Min Combat Hostiles Destroyed 24 | . 2 22 Guns 16 | . 2 14 AOE 8 | . . 8 Classes Destroyed 6 | 1 2 3 Tunneler 3 | 3 . . Hauler 1 | . 1 . Swarmer 11 | . . 11 Grunt 4 | . 2 2 Demolisher 1 | . . 1 Assembled 8 | . . 8 Best Kill Streak 8 | 1 2 8 Combat Bots Only 8 | . 2 8 Max Kills in Single Turn 4 | 1 1 4 Gunslinging 1 | . . 1 Exploded 4 | . . 4 Melee . | . . . Uniques/NPCs Destroyed . | . . . Combat | -11 -10 -10 -------- Run | Yrd Mat Min Hostile Shots Fired 99 | . 6 93 Missed 40 | . . 40 Hits 59 | . 6 53 Melee 2 | . . 2 Projectile 57 | . 6 51 AOE 8 | . . 8 Damage Taken 870 | . 68 802 Core 266 | . 9 257 Absorbed by Shields . | . . . Redirected to Shielding 2 | . 2 . Core Remaining (%) 100 | 100 . . Volleys Fired 55 | 18 9 28 Largest 2 | 1 2 2 Hottest 70 | 50 70 70 Shots Fired 89 | 18 18 53 Gun 86 | 18 18 50 Cannon . | . . . Launcher 3 | . . 3 Special . | . . . Kinetic 35 | . 9 26 Thermal 51 | 18 9 24 Explosive 3 | . . 3 Electromagnetic . | . . . Robot Hit Streak 11 | 6 11 9 Robot Miss Streak 4 | 2 1 4 Penetration Max . | . . . Secondary Targets 1 | . . 1 Max Gunslinging Chain 1 | . . 1 Shots Hit Robots 61 | 12 15 34 Core Hits 51 | 4 6 41 Critical Kills . | . . . Critical Parts Destroyed . | . . . Critical Strikes 5 | 1 2 2 Burn 5 | 1 2 2 Melee Attacks . | . . . Impact . | . . . Slashing . | . . . Piercing . | . . . Sneak Attacks . | . . . Combat Hostiles . | . . . Follow-up Attacks . | . . . Damage Inflicted 1339 | 150 183 1006 Guns 734 | 150 183 401 Cannons . | . . . Explosions 605 | . . 605 Melee . | . . . Ramming . | . . . Kinetic 285 | . 72 213 Thermal 449 | 150 111 188 Explosive 605 | . . 605 Electromagnetic . | . . . Impact . | . . . Slashing . | . . . Piercing . | . . . Highest Corruption . | . . . Average Corruption . | . . . Corruption Purged . | . . . Corruption Blocked . | . . . Overload Shots . | . . . Overflow Damage 2 | . . 2 Projectiles . | . . . Explosions 2 | . . 2 Melee . | . . . Knockbacks . | . . . Impact . | . . . Kinetic . | . . . Secondary . | . . . Self-Inflicted Damage . | . . . Shots . | . . . Rammed . | . . . Targets Rammed . | . . . Kicked . | . . . Crushed . | . . . Highest Temperature 90 | 90 81 54 Average Temperature 25 | 30 33 18 Received Heat Transfer 60 | . 36 24 Siege Activations . | . . . Martial Activations . | . . . Shielding Activations . | . . . Robots Disrupted . | . . . Combat Hostiles . | . . . Robots Corrupted . | . . . Combat Hostiles . | . . . Parts Fried . | . . . Impact Corruptions . | . . . Robots Melted . | . . . Combat Hostiles . | . . . Parts Melted 2 | . 1 1 Heat Transferred 1702 | 518 481 703 Parts Sabotaged . | . . . Parts Stolen . | . . . Parts Stripped . | . . . Power Chain Reactions . | . . . Alert | -11 -10 -10 ------- Run | Yrd Mat Min Maximum Alert Level 1 | . . 1 Low Security (%) 98 | 100 100 97 Level 1 1 | . . 2 Level 2 . | . . . Level 3 . | . . . Level 4 . | . . . Level 5 . | . . . High Security . | . . . Max Security . | . . . Peak Influence 212 | 5 40 212 Initial 7 | . . 7 Average 47 | 1 5 66 Influence Increases 435 | 15 57 363 Destroy 0b10 Robot/C 320 | . 40 280 Destroy 0b10 Robot/NC 20 | 15 5 . Destroy Leader 62 | . 12 50 Destroy Structure 18 | . . 18 Lose Combat Pursuer 15 | . . 15 Influence Decreases 425 | 15 37 373 Entered New Map 13 | . . 13 Time Decay 382 | 15 37 330 Lost Part 30 | . . 30 Squads Dispatched 1 | . 1 . Investigation . | . . . Extermination . | . . . Reinforcement 1 | . 1 . Assault . | . . . Garrison . | . . . Intercept . | . . . Searches Triggered . | . . . Construction Impeded . | . . . Haulers Reinforced . | . . . Active Scanning Responses . | . . . Cargo Convoy Interrupts . | . . . Stealth | -11 -10 -10 --------- Run | Yrd Mat Min Distress Signals 3 | . 3 . Communications Jammed . | . . . Distress Signals . | . . . Times Spotted 38 | . 2 36 Peak Tracking Total 19 | . 2 19 Tactical Retreats 1 | . . 1 Traps | -11 -10 -10 ------- Run | Yrd Mat Min Traps Triggered . | . . . Indirectly . | . . . Trap Hack Attempts . | . . . Triggered . | . . . Disarmed . | . . . Reprogrammed . | . . . Reused . | . . . Traps Extracted . | . . . Installed . | . . . Triggered . | . . . Machines | -11 -10 -10 ---------- Run | Yrd Mat Min Machines Disabled . | . . . Max in Single Turn . | . . . Machines Repaired . | . . . Machines Dismantled . | . . . Machines Sabotaged . | . . . Overloaded Fab Kills . | . . . Hacking | -11 -10 -10 --------- Run | Yrd Mat Min Machines Accessed . | . . . Terminals . | . . . Fabricators . | . . . Repair Stations . | . . . Recycling Units . | . . . Scanalyzers . | . . . Garrison Access . | . . . Total Hacks . | . . . Successful . | . . . Failed . | . . . Catastrophic . | . . . Database Lockouts . | . . . Manual . | . . . Terminals . | . . . Fabricators . | . . . Repair Stations . | . . . Recycling Units . | . . . Scanalyzers . | . . . Garrison Access . | . . . Terminal Hacks . | . . . Fabricator Hacks . | . . . Repair Station Hacks . | . . . Recycling Unit Hacks . | . . . Scanalyzer . | . . . Garrison Access Hacks . | . . . Unauthorized Hacks . | . . . Terminals . | . . . Fabricators . | . . . Repair Stations . | . . . Recycling Units . | . . . Scanalyzers . | . . . Garrison Access . | . . . Data Cores Recovered . | . . . Used . | . . . Hacking Detections . | . . . Full Trace Events . | . . . Feedback Events . | . . . Feedback Blocked . | . . . Robot Schematics Acquired . | . . . Robots Built . | . . . Authchips . | . . . Time . | . . . Total Robot Build Rating . | . . . Part Schematics Acquired . | . . . Parts Built . | . . . Authchips . | . . . Time . | . . . Total Part Build Rating . | . . . Parts Repaired . | . . . Time . | . . . Parts Recycled . | . . . Recycled Matter . | . . . Retrieved Matter . | . . . Retrieved Components . | . . . Parts Scanalyzed . | . . . Part Schematics Acquired . | . . . Parts Damaged . | . . . Bothacking | -11 -10 -10 ------------ Run | Yrd Mat Min Used RIF Installer . | . . . Robots Hacked . | . . . Non-combat . | . . . Combat . | . . . Robot Hacks Applied . | . . . Relay Couplers Released . | . . . Fabnet Peak Effective % . | . . . Robots Rewired . | . . . Allies Hacked . | . . . Hacks Repelled . | . . . Allies | -11 -10 -10 -------- Run | Yrd Mat Min Total Allies . | . . . Largest Group . | . . . Highest-Rated Group . | . . . Highest-Rated Ally . | . . . Total Orders . | . . . Ally Attacks . | . . . Total Damage . | . . . Kills . | . . . Allies Corrupted . | . . . Allies Melted . | . . . Intel | -11 -10 -10 ------- Run | Yrd Mat Min Active Infowar (turns) 1362 | 16 268 1078 Seismic 1362 | 16 268 1078 Robot Analysis Total . | . . . Derelict Logs Recovered 1 | . . 1 Drone Launches . | . . . Drone Recoveries . | . . . Exploration | -11 -10 -10 ------------- Run | Yrd Mat Min Turns Passed 1553 | 181 294 1078 Spaces Moved 626 | 98 110 418 Core 22 | 22 . . Treads . | . . . Legs 604 | 76 110 418 Wheels . | . . . Hover . | . . . Flight . | . . . Fastest Speed 50 | 50 120 120 Average Speed 117 | 105 120 120 Slowest Speed 190 | 120 120 190 Overloaded Moves . | . . . Propulsion Burnouts . | . . . Robots Hopped . | . . . Potential Cave-ins . | . . . Cave-ins Triggered . | . . . Exploration Rate (%) 30 | 6 28 57 Regions Visited 2 Branch Regions 1 Pre-discovered Areas 1 | . . 1 Known Exits Taken . | . . . Unknown Exits Taken 2 | 1 1 . Scrap Searched 1 | . . 1 Spaces Dug . | . . . Terrain Destroyed 21 | . . 21 Melee . | . . . Projectile . | . . . AOE 21 | . . 21 Terrain Rammed . | . . . Walls Destroyed . | . . . Machines Disabled . | . . . Actions | -11 -10 -10 --------- Run | Yrd Mat Min Total 1354 | 157 255 942 Wait 631 | 20 124 487 Move 624 | 97 109 418 Hop . | . . . Pick Up 18 | 11 5 2 Fast Attach 5 | 3 2 . Attach 9 | 6 . 3 Detach . | . . . Swap 4 | . 1 3 Drop 8 | 2 5 1 Fire 55 | 18 9 28 Melee . | . . . Ram . | . . . Kick . | . . . Crush . | . . . Escape Stasis . | . . . Rewire . | . . . Trap . | . . . Miscellaneous . | . . . Route ------- -11/Scrapyard -10/Materials (discovered 2 exits: [*Min x2]) -10/Mines (discovered 3 exits: [*Mat x2] / [*Sub]) History --------- Turn | Location | Event 10 | -11/Scrapyard | Discovered new exit (range 15) 182 | -11/Scrapyard | Entered Materials 183 | -10/Materials | Met a group of wandering Federalists 301 | -10/Materials | Build established: Mutant 348 | -10/Materials | Discovered new exit (range 5) 469 | -10/Materials | Discovered new exit (range 7) 476 | -10/Materials | Entered Mines 574 | -10/Mines | Learned location of 1 exit from Materials 612 | -10/Mines | Discovered new exit (range 10) 782 | -10/Mines | Learned location of Storage (-7) 862 | -10/Mines | Discovered new exit (range 3) 866 | -10/Mines | Assembled infested the area 892 | -10/Mines | Core integrity fell below 50% 910 | -10/Mines | Destroyed 8 combat bots 1476 | -10/Mines | Discovered new exit (range 3) 1548 | -10/Mines | Core integrity fell below 20% 1554 | -10/Mines | Destroyed by D-53 Grenadier with Mini Grenade Launcher Last Messages --------------- 01203_ T-07 Excavator is excavating. 01218_ U-05 Engineer lays Concrete. 01254_ T-07 Excavator is excavating. 01262_ U-05 Engineer lays Concrete. 01263_ U-05 Engineer builds a Wall. 01304_ T-07 Excavator is excavating. 01314_ U-05 Engineer lays Concrete. 01316_ U-05 Engineer builds a Wall. 01355_ T-07 Excavator is excavating. 01363_ U-05 Engineer lays Concrete. 01365_ U-05 Engineer builds a Wall. 01405_ T-07 Excavator is excavating. 01417_ U-05 Engineer lays Concrete. 01455_ T-07 Excavator is excavating. 01462_ U-05 Engineer lays Concrete. 01476_ EXIT=FOUND 01546_ D-53 Grenadier destroyed. 01550_ U-05 Engineer lays Concrete. 01551_ Med. Laser destroyed. 01552_ U-05 Engineer lays Concrete. Map ----- +----------------------------------------------------+ | ????###?# ##????????# % ?????? | | ???## ## #?#######? % ?????? | | ???# # #?# ??? #??????? | | ???# ## ##?# """ ????## ##??????? | | ????# #??# """ ???? # #??????? | | ????## #??? """ ???? ##??????? | | ?????## ##???? ??## #??????? | | ?????## ##??????# #### #??????? | | ????## ##???????# ##??????? | | ???## ##????????# ##### #####???????? | | ???# #???####??# ##??? ##???????????? | | ???# #??## ##?# ##??? ###????????????? | | ???# #?## ### ###?## #??????????????? | | ???## ### ! ##?? #??????????????? | | ????## =%! #??#![ #????## ????? | | ?????# ####[%* # #??? | | ????## ## ### ## [ * #??? | | ???## ## ### ### %]< ##?????????? | | ??## ## ##?# ##! ##??????????? | | ??# #### ##??#!### ##???????????? | | ??# ### ######%#?######????????????? | | ??## ## ### ## # rd##??????????????????? | | ???# ### ##?# # u #########??????????? | | ???# ##?# ##??# # ##?????????? | | ???# ##??# #???# #?????????? | | ???## ##### #???# @ ###### #?????????? | | ????# #???# ##????####?????????? | | ??### #######???## # #??????????????????? | | ??# #??????# # ##??????????????????? | | ??# """" #??????# ## ##???????????????????? | | ??# """" #??????# ## #????????????????????? | | ??# """" #??????# ### ##????????????????????? | | ??# #??????#%#?### #?????????????????????? | | ??#########??????# #???#[#?????????????????????? | | ?????????????#####%#???#*#?????????????????????? | | ?????????????#[=[ #???# #####?????????????????? | | ?????????????#%#####???#[*= #?????????????????? | | ?????????????#=#???????##### #???####??????????? | | ?????????????#=#???????????# #??## #??????????? | | ?????????????#%#???????????# #??# ##?????????? | | ?????????????#=#???????????# #?## #?????????? | | ?????????????#[#???????????# #?# #?????????? | | ?????????????# #???????????# #?# ##???###???? | | ?????????????# ##??????????# #?## #??## ###?? | | ????????????## ###??####### ##?## #??# ##? | | ????????????# #??# #### #??# #? | | ????????????# < #??# #### #? | | ????????????# #??# #### ## #?? | | ????????????## ##??# #??# #?? | | ?????????????# ##???# """ #??## #?? | +----------------------------------------------------+ Best States ------------- Heat Dissipation 25 Energy Generation 10 Energy Capacity 250 Matter Stores 300 Matter Capacity 300 Sight Range 16 Terrain Scan Density 10 Core Shielding 20 Evasion (%) 55 Item Schematics ----------------- None Robot Schematics ------------------ None Fabricated ------------ Nothing Repaired ---------- Nothing Alien Tech Used ----------------- None Achievements -------------- None Challenges ------------ None Game ------ Seed GodPortableArmor Manual? 0 Play Time 00:09:10 Cumulative 33.6 hours Start 2025.06.12 @ 12:23:47 End 2025.06.12 @ 12:32:24 Sessions 1 Manual Loads 0 Difficulty Rogue Special Mode None Game No. 22 Rogue 3 Adventurer 0 Explorer 19 Win Type - Total 0 Types 0/0/0/0/0/0/0/0/0/0 Lore% 34 Gallery% 27 Achievement% 67 Wizard Run 0 Options --------- Layout 1 ASCII 0 Keyboard 0 Movement Mouse Keybinds 0 Fullscreen 1 Font 16/SmallcapsGlow Map View 50x40 Zoom Use 0% Tactical HUD 1 Map Filters NONE Filters NONE Steam SD RUN: 85d21e25-ba0d-4fce-bb7f-f9e8e2d6bede